Workbook

Sheet PRINCIPAL
C2: ANÁLISE DE SUSTENTABILIDADE
F3: Método Lume - Análise Qualitativa
A5: USE O MENU ABAIXO PARA NAVEGAR NO SISTEMA
C6: DATA DA ENTREVISTA | F6: 2022-04-30 | I6: RESPONSÁVEL PELA ENTREVISTA | L6: Marcio
A9: COMPOSIÇÃO DO NSGA | C9: NSGA | E9: Família Silva
A11: ACESSO A TERRA
C12: INFORMAÇÕES DO NSGA
A13: LINHA DO TEMPO | C13: UF | D13: PB | F13: MUNICÍPIO | H13: Solânea | L13: DISTRITO
A15: SUBSISTEMAS
C16: COMUNIDADE | E16: Gameleira | I16: NOME DA PROPRIEDADE | L16: Gameleira
A17: DIVISÃO SOCIAL DO TRABALHO
A19: ANÁLISE QUALITATIVA | C19: COORDENADAS DO ESTABELECIMENTO
C20: DISTÂNCIA A SEDE DO MUNICIPIO | E20: 12km | G20: LATITUDE | H20: 54545 | J20: LONGITUDE | K20: -45454 | M20: ALTITUDE | N20: 456

Sheet 1 COMPOSIÇÃO DO NSGA
A1: COMPOSIÇÃO DO NSGA
A8: NSGA: | C8: =PRINCIPAL!E9 -> Família Silva | G8: PROPRIEDADE: | H8: =PRINCIPAL!L16 -> Gameleira
A10: UF | B10: =PRINCIPAL!D13 -> PB | C10: MUNICÍPIO: | D10: =PRINCIPAL!H13 -> Solânea | F10: DISTRITO: | G10: =PRINCIPAL!N13 -> 0 | H10: COMUNIDADE: | I10: =PRINCIPAL!E16 -> Gameleira
A12: COMPOSIÇÃO DO NSGA (NÚCLEO SOCIAL DE GESTÃO DO AGROECOSSISTEMA)
A13: N | B13: Nome | D13: Parentesco | E13: Sexo | F13: Data de Nascimento | G13: Reside no Agroecossistema | H13: Tempo Dedicado ao Agroecossistema | I13: Ocupação fora do Agroecossistema
A14: 1 | B14: Vera Lucena | D14: Esposo (a) | E14: F | F14: 1987-11-21 | G14: SIM | H14: Integral
A15: 2 | B15: Luis Lucena | D15: Esposo (a) | E15: M | G15: SIM | H15: Integral
A16: 3 | B16: Leila Lucena | D16: Filho(a) | E16: F | G16: SIM | H16: Pessoa com limitação para trabalhar
A17: 4 | B17: Lara Lucena | D17: Filho(a) | E17: F | G17: SIM | H17: Parcial | I17: Estudante
A18: 5 | B18: Lidio Lucena | D18: Filho(a) | E18: M | G18: SIM | H18: Parcial | I18: Estudante
A19: 6 | B19: Maria Macena | D19: Filho(a) | E19: F | G19: SIM | H19: Parcial | I19: Estudante
A20: 7 | B20: Junior | D20: Filho(a) | E20: M | G20: SIM | H20: Não Trabalha | I20: Criança

Sheet 2 ACESSO A TERRA
A1: ACESSO À TERRA
A8: NSGA: | C8: =PRINCIPAL!E9 -> Família Silva | G8: PROPRIEDADE: | H8: =PRINCIPAL!L16 -> Gameleira
A10: UF | B10: =PRINCIPAL!D13 -> PB | C10: MUNICÍPIO: | D10: =PRINCIPAL!H13 -> Solânea | F10: DISTRITO: | G10: =PRINCIPAL!N13 -> 0 | H10: COMUNIDADE: | I10: =PRINCIPAL!E16 -> Gameleira
A12: ACESSO À TERRA E OUTROS ESPAÇOS NATURAIS
A13: ÁREA | B13: DENOMINAÇÃO DA TERRA | E13: FORMA DE ACESSO A TERRA | G13: MUNICÍPIO | H13: DISTÂNCIA DA ÀREA AO LOCAL DE MORADIA (km) | I13: DIMENSÃO DA ÁREA (hectares)
A14: 1 | B14: Sitio Lagoa Seca | E14: Própria | G14: Pocinhos | H14: 0 | I14: 21
A15: 2 | B15: Sítio Beneficio | E15: Própria | G15: Pocinhos | H15: 1.5 | I15: 11
A16: 3
A17: 4
A18: 5
A19: 6
A20: 7
A21: 8
A23: TOTAL | I23: =SUM(I14:I21) -> 32

Sheet 1 FICHA DE REGISTRO (hidden)
A1: FICHA DE REGISTRO DE INFORMAÇÕES DE CAMPO
L2: DATA DA ENTREVISTA | N2: 22 DE OUTUBRO DE 2022
L3: TÉCNICO RESPONSÁVEL | N3: Giovana opes e Adriana Vieira
A8: NSGA | E8: Família Leal
A10: UF | B10: MS | C10: MUNICIPIO: | D10: APODI | F10: DISTRITO: | G10: ALGODAO | H10: COMUNIDADE: | I10: SITIO MELANCIAS | K10: DISTÂNCIA À SEDE DO MUNICIPIO | L10: 12 KM | M10: COORDENADAS DO ESTABELECIMENTO | N10: LATITUDE | O10: 5741677 | P10: ALTITUDE METROS | Q10: 720 MTS
C11: DISTRITO: | F11: NOME DA PROPRIEDADE: | H11: MARIA OSANA GURGEL DE OLIVEIRA | N11: LONGITUDE | O11: -37843585
K16: ACESSO Á TERRA E OUTROS ESPAÇOS NATURAIS
A17: N | B17: Nome | D17: Parentesco | E17: Sexo | F17: Data de Nascimento | G17: Reside no Agroecossistema | H17: Tempo Dedicado ao Acroecossistema | I17: Ocupação fora do Agroecossistema | K17: ÀREA | L17: DENOMINAÇÃO DA ÁREA | M17: FORMA DE ACESSO À TERRA | N17: MUNICIPIO | O17: DISTÂNCIA DA ÀREA AO LOCAL DE MORADIA (KM) | Q17: DIMENSÃO em (há)
A18: 1 | B18: Maria Osana Gurgel de Oliveira | D18: Esposo (a) | E18: M | F18: 1987-11-21 | G18: SIM | H18: Parcial | K18: 1 | M18: Arrendamento | N18: APODI | O18: 0,0 km | Q18: 30
A19: 2 | B19: Laerte de Oliveira Costa | D19: Esposo (a) | E19: F | G19: NÃO | H19: Não Trabalha | K19: 2 | L19: Pasto | M19: Comodato | N19: Apodi | O19: 6 km | Q19: 0.6
A20: 3 | B20: Braz Antonio de Oliveira Costa | D20: Avô (ó) | E20: M | G20: SIM | H20: Parcial
A21: 4 | B21: Mateus leal | D21: Filho(a) | E21: F | G21: NÃO | H21: Integral
A22: 5 | B22: Marcos sales | D22: Mãe | E22: M | G22: SIM | H22: Pessoa com limitação para trabalhar
A23: 6 | B23: José gomes | D23: Pai | E23: F | G23: NÃO | H23: Parcial | I23: Estudante
A24: 7 | B24: Amanda vieira | D24: Mãe | E24: M | G24: SIM | H24: Parcial
A25: 8 | B25: Berenice leal | D25: Pai | E25: F | G25: NÃO | H25: Não Trabalha | K25: TOTAL DA ÁREA | Q25: =SUM(Q18:Q24) -> 30.6

Sheet DADOS (hidden)
H2: SEXO | K2: Parentesco
C3: ESTADOS E CAPITAIS | H3: M | I3: MASCULINO | K3: Esposo (a) | N3: SIGAS UF | Q3: tempo dedicado ao agroecossistema
C4: Sigla | D4: Capital | E4: Gentílico | H4: F | I4: FEMININO | K4: Filho(a) | Q4: Integral
C5: Acre | D5: AC | E5: Rio Branco | F5: acriano | K5: Primo(a) | Q5: Parcial
C6: Alagoas | D6: AL | E6: Maceió | F6: alagoano | K6: Mãe | N6: AC | Q6: Não Trabalha
C7: Amapá | D7: AP | E7: Macapá | F7: amapaense | K7: Pai | N7: AL | Q7: Pessoa com limitação para trabalhar
C8: Amazonas | D8: AM | E8: Manaus | F8: Amazonense | K8: Avô (ó) | N8: AP
C9: Bahia | D9: BA | E9: Salvador | F9: baiano | K9: Tio(a) | N9: AM
C10: Ceará | D10: CE | E10: Fortaleza | F10: cearense | K10: Agregado | N10: BA
C11: Distrito Federal | D11: DF | E11: Brasília | F11: brasiliense | K11: Outros | N11: CE
C12: Espírito Santo | D12: ES | E12: Vitória | F12: capixaba ou espírito-santense | N12: DF
C13: Goiás | D13: GO | E13: Goiânia | F13: goiano | N13: ES | Q13: reside no agroecossistema
C14: Maranhão | D14: MA | E14: São Luís | F14: maranhense | N14: GO | Q14: SIM
C15: Mato Grosso | D15: MT | E15: Cuiabá | F15: mato-grossense | N15: MA | Q15: NÃO
C16: Mato Grosso do Sul | D16: MS | E16: Campo Grande | F16: sul-mato-grossense ou mato-grossense-do-sul | N16: MT
C17: Minas Gerais | D17: MG | E17: Belo Horizonte | F17: mineiro | I17: Forma de acesso a terra | N17: MS
C18: Paraná | D18: PR | E18: Curitiba | F18: paranaense | I18: Própria | N18: MG
C19: Paraíba | D19: PB | E19: João Pessoa | F19: paraibano | I19: Posse | N19: PR
C20: Pará | D20: PA | E20: Belém | F20: paraense | I20: Arrendamento | N20: PB
C21: Pernambuco | D21: PE | E21: Recife | F21: pernambucano | I21: Meação | N21: PA
C22: Piauí | D22: PI | E22: Teresina | F22: piauiense | I22: Parceria | N22: PE
C23: Rio Grande do Norte | D23: RN | E23: Natal | F23: potiguar, norte-rio-grandense, rio-grandense-do-norte | I23: Cessão | N23: PI
C24: Rio Grande do Sul | D24: RS | E24: Porto Alegre | F24: gaúcho ou sul-rio-grandense | I24: Comodato | N24: RN
C25: Rio de Janeiro | D25: RJ | E25: Rio de Janeiro | F25: fluminense | I25: Direito de uso | N25: RS
C26: Rondônia | D26: RO | E26: Porto Velho | F26: rondoniense ou rondoniano | I26: Uso comunitário | N26: RJ
C27: Roraima | D27: RR | E27: Boa Vista | F27: roraimense | I27: Outros | N27: RO
C28: Santa Catarina | D28: SC | E28: Florianópolis | F28: catarinense ou barriga-verde | N28: RR
C29: Sergipe | D29: SE | E29: Aracaju | F29: sergipano ou sergipense | N29: SC
C30: São Paulo | D30: SP | E30: São Paulo | F30: paulista | N30: SE
C31: Tocantins | D31: TO | N31: SP
N32: TO

Sheet 3 LINHA DO TEMPO
C1: LINHA DO TEMPO DO AGROECOSSISTEMA
C6: NSGA: | D6: =PRINCIPAL!E9 -> Família Silva | F6: Municipio: | G6: ='1 COMPOSIÇÃO DO NSGA'!D10 -> Solânea | H6: Distrito | I6: =PRINCIPAL!N13 -> 0 | J6: NOME DA PROPRIEDADE: | K6: =PRINCIPAL!L16 -> Gameleira | M6: DISTÂNCIA À SEDE DO MUNICÍPIO | N6: =PRINCIPAL!E20 -> 12km
A8: AGROECOSSISTEMA | B8: Outros
B9: Capital fundiário e equipamentos
B10: Produção animal
B11: Produção vegetal
B12: Sistema peridoméstico
B13: Ciclo de vida da família
A14: ANO
A15: CONTEXTO EXTERNO | B15: Participação na gestão de bens comuns
B16: Acesso a conhecimento
B17: Integração a espaços político-organizativos
B18: Acesso aos mercados
B19: Acesso a políticas públicas
B20: Outros

Sheet 4 SUBSISTEMAS
A1: SUBSISTEMAS
A8: NSGA: | B8: =PRINCIPAL!E9 -> Família Silva | D8: PROPRIEDADE: | E8: =PRINCIPAL!L16 -> Gameleira | H8: DATA ENTREVISTA: | I8: =PRINCIPAL!F6 -> 2022-04-30
A10: UF: | B10: =PRINCIPAL!D13 -> PB | C10: MUNICÍPIO: | D10: =PRINCIPAL!H13 -> Solânea | F10: DISTRITO: | G10: =PRINCIPAL!N13 -> 0 | H10: COMUNIDADE: | I10: =PRINCIPAL!E16 -> Gameleira
A13: SUBSISTEMA | D13: DESCRIÇÃO (área ocupada, número de animais, principais produções etc).
A14: Roçado
A15: Roçado Diversificado
A16: Algodão
A17: Bovinos
A18: Ovinos Caprinos
A19: Quintal Aves
A20: Quintal porcos
A21: Quintal frutas, horta e medicinais
A22: Comercialização

Sheet 5 DIVISÃO SOCIAL DO TRABALHO
A1: DIVISÃO DO TRABALHO
C4: Exibir | D4: Ocutar
C5: Tempo dedicado | L5: Tomada de decisão
A6: NSGA: | B6: =PRINCIPAL!E9 -> Família Silva | C6: =IFERROR(LEFT('1 COMPOSIÇÃO DO NSGA'!$B14,SEARCH(" ",'1 COMPOSIÇÃO DO NSGA'!$B14,1)-1)," ") -> Vera | D6: =IFERROR(LEFT('1 COMPOSIÇÃO DO NSGA'!$B15,SEARCH(" ",'1 COMPOSIÇÃO DO NSGA'!$B15,1)-1)," ") -> Luis | E6: =IFERROR(LEFT('1 COMPOSIÇÃO DO NSGA'!$B16,SEARCH(" ",'1 COMPOSIÇÃO DO NSGA'!$B16,1)-1)," ") -> Leila | F6: =IFERROR(LEFT('1 COMPOSIÇÃO DO NSGA'!$B17,SEARCH(" ",'1 COMPOSIÇÃO DO NSGA'!$B17,1)-1)," ") -> Lara | G6: =IFERROR(LEFT('1 COMPOSIÇÃO DO NSGA'!$B18,SEARCH(" ",'1 COMPOSIÇÃO DO NSGA'!$B18,1)-1)," ") -> Lidio | H6: =IFERROR(LEFT('1 COMPOSIÇÃO DO NSGA'!$B19,SEARCH(" ",'1 COMPOSIÇÃO DO NSGA'!$B19,1)-1)," ") -> Maria | I6: =IFERROR(LEFT('1 COMPOSIÇÃO DO NSGA'!$B20,SEARCH(" ",'1 COMPOSIÇÃO DO NSGA'!$B20,1)-1)," ") ->  | J6: =IFERROR(LEFT('1 COMPOSIÇÃO DO NSGA'!$B21,SEARCH(" ",'1 COMPOSIÇÃO DO NSGA'!$B21,1)-1)," ") ->  | L6: =IFERROR(LEFT('1 COMPOSIÇÃO DO NSGA'!$B14,SEARCH(" ",'1 COMPOSIÇÃO DO NSGA'!$B14,1)-1)," ") -> Vera | M6: =IFERROR(LEFT('1 COMPOSIÇÃO DO NSGA'!$B15,SEARCH(" ",'1 COMPOSIÇÃO DO NSGA'!$B15,1)-1)," ") -> Luis | N6: =IFERROR(LEFT('1 COMPOSIÇÃO DO NSGA'!$B16,SEARCH(" ",'1 COMPOSIÇÃO DO NSGA'!$B16,1)-1)," ") -> Leila | O6: =IFERROR(LEFT('1 COMPOSIÇÃO DO NSGA'!$B17,SEARCH(" ",'1 COMPOSIÇÃO DO NSGA'!$B17,1)-1)," ") -> Lara | P6: =IFERROR(LEFT('1 COMPOSIÇÃO DO NSGA'!$B18,SEARCH(" ",'1 COMPOSIÇÃO DO NSGA'!$B18,1)-1)," ") -> Lidio | Q6: =IFERROR(LEFT('1 COMPOSIÇÃO DO NSGA'!$B19,SEARCH(" ",'1 COMPOSIÇÃO DO NSGA'!$B19,1)-1)," ") -> Maria | R6: =IFERROR(LEFT('1 COMPOSIÇÃO DO NSGA'!$B20,SEARCH(" ",'1 COMPOSIÇÃO DO NSGA'!$B20,1)-1)," ") ->  | S6: =IFERROR(LEFT('1 COMPOSIÇÃO DO NSGA'!$B21,SEARCH(" ",'1 COMPOSIÇÃO DO NSGA'!$B21,1)-1)," ") -> 
C7: =IF('1 COMPOSIÇÃO DO NSGA'!D14=0," ",'1 COMPOSIÇÃO DO NSGA'!D14) -> Esposo (a) | D7: =IF('1 COMPOSIÇÃO DO NSGA'!D15=0," ",'1 COMPOSIÇÃO DO NSGA'!D15) -> Esposo (a) | E7: =IF('1 COMPOSIÇÃO DO NSGA'!D16=0," ",'1 COMPOSIÇÃO DO NSGA'!D16) -> Filho(a) | F7: =IF('1 COMPOSIÇÃO DO NSGA'!D17=0," ",'1 COMPOSIÇÃO DO NSGA'!D17) -> Filho(a) | G7: =IF('1 COMPOSIÇÃO DO NSGA'!D18=0," ",'1 COMPOSIÇÃO DO NSGA'!D18) -> Filho(a) | H7: =IF('1 COMPOSIÇÃO DO NSGA'!D19=0," ",'1 COMPOSIÇÃO DO NSGA'!D19) -> Filho(a) | I7: =IF('1 COMPOSIÇÃO DO NSGA'!D20=0," ",'1 COMPOSIÇÃO DO NSGA'!D20) -> Filho(a) | J7: =IF('1 COMPOSIÇÃO DO NSGA'!D21=0," ",'1 COMPOSIÇÃO DO NSGA'!D21) ->  | L7: =IF('1 COMPOSIÇÃO DO NSGA'!D14=0," ",'1 COMPOSIÇÃO DO NSGA'!D14) -> Esposo (a) | M7: =IF('1 COMPOSIÇÃO DO NSGA'!D15=0," ",'1 COMPOSIÇÃO DO NSGA'!D15) -> Esposo (a) | N7: =IF('1 COMPOSIÇÃO DO NSGA'!D16=0," ",'1 COMPOSIÇÃO DO NSGA'!D16) -> Filho(a) | O7: =IF('1 COMPOSIÇÃO DO NSGA'!D17=0," ",'1 COMPOSIÇÃO DO NSGA'!D17) -> Filho(a) | P7: =IF('1 COMPOSIÇÃO DO NSGA'!D18=0," ",'1 COMPOSIÇÃO DO NSGA'!D18) -> Filho(a) | Q7: =IF('1 COMPOSIÇÃO DO NSGA'!D19=0," ",'1 COMPOSIÇÃO DO NSGA'!D19) -> Filho(a) | R7: =IF('1 COMPOSIÇÃO DO NSGA'!D20=0," ",'1 COMPOSIÇÃO DO NSGA'!D20) -> Filho(a) | S7: =IF('1 COMPOSIÇÃO DO NSGA'!D21=0," ",'1 COMPOSIÇÃO DO NSGA'!D21) -> 
A8: Trabalho mercantil e autoconsumo | B8: =IF('4 SUBSISTEMAS'!A14=0," ",'4 SUBSISTEMAS'!A14) -> Roçado | C8: 3 | D8: 3 | E8: 0 | F8: 2 | G8: 1 | L8: 1 | M8: 2 | N8: 0 | O8: 0 | P8: 0
B9: =IF('4 SUBSISTEMAS'!A15=0," ",'4 SUBSISTEMAS'!A15) -> Roçado Diversificado | C9: 3 | D9: 3 | E9: 0 | F9: 2 | G9: 1 | L9: 2 | M9: 2 | N9: 0 | O9: 0 | P9: 0
B10: =IF('4 SUBSISTEMAS'!A16=0," ",'4 SUBSISTEMAS'!A16) -> Algodão | C10: 3 | D10: 3 | E10: 0 | F10: 2 | G10: 1 | L10: 2 | M10: 2 | N10: 0 | O10: 0 | P10: 0
B11: =IF('4 SUBSISTEMAS'!A17=0," ",'4 SUBSISTEMAS'!A17) -> Bovinos | C11: 1 | D11: 3 | E11: 0 | F11: 3 | G11: 1 | L11: 1 | M11: 2 | N11: 0 | O11: 0 | P11: 0
B12: =IF('4 SUBSISTEMAS'!A18=0," ",'4 SUBSISTEMAS'!A18) -> Ovinos Caprinos | C12: 2 | D12: 3 | E12: 0 | F12: 3 | G12: 1 | L12: 1 | M12: 2 | N12: 0 | O12: 0 | P12: 0
B13: =IF('4 SUBSISTEMAS'!A19=0," ",'4 SUBSISTEMAS'!A19) -> Quintal Aves | C13: 3 | D13: 1 | E13: 0 | F13: 3 | G13: 1 | L13: 2 | M13: 1 | N13: 0 | O13: 0 | P13: 0
B14: =IF('4 SUBSISTEMAS'!A20=0," ",'4 SUBSISTEMAS'!A20) -> Quintal porcos | C14: 3 | D14: 2 | E14: 0 | F14: 3 | G14: 1 | L14: 2 | M14: 1 | N14: 0 | O14: 0 | P14: 0
B15: =IF('4 SUBSISTEMAS'!A21=0," ",'4 SUBSISTEMAS'!A21) -> Quintal frutas, horta e medicinais | C15: 3 | D15: 1 | E15: 0 | F15: 3 | G15: 1 | L15: 2 | M15: 1 | N15: 0 | O15: 0 | P15: 0
B16: =IF('4 SUBSISTEMAS'!A22=0," ",'4 SUBSISTEMAS'!A22) -> Comercialização | C16: 3 | D16: 3 | E16: 0 | F16: 3 | G16: 1 | L16: 2 | M16: 2 | N16: 0 | O16: 0 | P16: 0
B17: =IF('4 SUBSISTEMAS'!A23=0," ",'4 SUBSISTEMAS'!A23) -> 
B18: =IF('4 SUBSISTEMAS'!A24=0," ",'4 SUBSISTEMAS'!A24) -> 
A21: Trabalho doméstico e cuidados | B21: Cuidar das crianças | C21: 3 | D21: 3 | E21: 2 | F21: 3 | G21: 3 | L21: 2 | M21: 2 | N21: 1 | O21: 2
B22: Cuidar dos idosos | C22: 2 | D22: 1 | E22: 0 | F22: 2 | G22: 2 | L22: 2 | M22: 2
B23: Fazer comida | C23: 3 | D23: 1 | E23: 1 | F23: 2 | G23: 1 | L23: 2 | M23: 0 | N23: 1 | O23: 1
B24: Limpar a casa | C24: 3 | D24: 1 | L24: 2 | M24: 0 | N24: 1
B25: Lavar roupas | C25: 3 | D25: 0 | L25: 2
A27: Participação social | C27: 3 | D27: 1 | E27: 3 | F27: 2 | G27: 2 | L27: 2 | M27: 2 | N27: 1 | O27: 1 | P27: 1
A29: Pluriatividade | C29: 0 | D29: 0 | E29: 0 | F29: 0 | G29: 0 | H29: 0
C30: =SUM(C8:C29) -> 41 | D30: =SUM(D8:D29) -> 29 | E30: 6 | F30: 33 | G30: 17 | H30: 0 | I30: 0 | J30: 0 | L30: =SUM(L8:L29) -> 27 | M30: =SUM(M8:M29) -> 21 | N30: 4 | O30: 4 | P30: 1 | Q30: 0 | R30: 0 | S30: 0

Sheet DIVISAO (hidden)
A1: AGRICULTURA FAMILIAR E AGROECOOGIA
D6: Tempo dedicado | M6: Tomada de decisão
A7: NSGA: | B7: ='1 FICHA DE REGISTRO'!E8 -> Família Leal
D8: =IFERROR(LEFT('1 COMPOSIÇÃO DO NSGA'!$B14,SEARCH(" ",'1 COMPOSIÇÃO DO NSGA'!$B14,1)-1)," ") -> Vera | E8: =IFERROR(LEFT('1 COMPOSIÇÃO DO NSGA'!$B15,SEARCH(" ",'1 COMPOSIÇÃO DO NSGA'!$B15,1)-1)," ") -> Luis | F8: =IFERROR(LEFT('1 COMPOSIÇÃO DO NSGA'!$B16,SEARCH(" ",'1 COMPOSIÇÃO DO NSGA'!$B16,1)-1)," ") -> Leila | G8: =IFERROR(LEFT('1 COMPOSIÇÃO DO NSGA'!$B17,SEARCH(" ",'1 COMPOSIÇÃO DO NSGA'!$B17,1)-1)," ") -> Lara | H8: =IFERROR(LEFT('1 COMPOSIÇÃO DO NSGA'!$B18,SEARCH(" ",'1 COMPOSIÇÃO DO NSGA'!$B18,1)-1)," ") -> Lidio | I8: =IFERROR(LEFT('1 COMPOSIÇÃO DO NSGA'!$B19,SEARCH(" ",'1 COMPOSIÇÃO DO NSGA'!$B19,1)-1)," ") -> Maria | J8: =IFERROR(LEFT('1 COMPOSIÇÃO DO NSGA'!$B20,SEARCH(" ",'1 COMPOSIÇÃO DO NSGA'!$B20,1)-1)," ") ->  | K8: =IFERROR(LEFT('1 COMPOSIÇÃO DO NSGA'!$B21,SEARCH(" ",'1 COMPOSIÇÃO DO NSGA'!$B21,1)-1)," ") ->  | M8: =IFERROR(LEFT('1 COMPOSIÇÃO DO NSGA'!$B14,SEARCH(" ",'1 COMPOSIÇÃO DO NSGA'!$B14,1)-1)," ") -> Vera | N8: =IFERROR(LEFT('1 COMPOSIÇÃO DO NSGA'!$B15,SEARCH(" ",'1 COMPOSIÇÃO DO NSGA'!$B15,1)-1)," ") -> Luis | O8: =IFERROR(LEFT('1 COMPOSIÇÃO DO NSGA'!$B16,SEARCH(" ",'1 COMPOSIÇÃO DO NSGA'!$B16,1)-1)," ") -> Leila | P8: =IFERROR(LEFT('1 COMPOSIÇÃO DO NSGA'!$B17,SEARCH(" ",'1 COMPOSIÇÃO DO NSGA'!$B17,1)-1)," ") -> Lara | Q8: =IFERROR(LEFT('1 COMPOSIÇÃO DO NSGA'!$B18,SEARCH(" ",'1 COMPOSIÇÃO DO NSGA'!$B18,1)-1)," ") -> Lidio | R8: =IFERROR(LEFT('1 COMPOSIÇÃO DO NSGA'!$B19,SEARCH(" ",'1 COMPOSIÇÃO DO NSGA'!$B19,1)-1)," ") -> Maria | S8: =IFERROR(LEFT('1 COMPOSIÇÃO DO NSGA'!$B20,SEARCH(" ",'1 COMPOSIÇÃO DO NSGA'!$B20,1)-1)," ") ->  | T8: =IFERROR(LEFT('1 COMPOSIÇÃO DO NSGA'!$B21,SEARCH(" ",'1 COMPOSIÇÃO DO NSGA'!$B21,1)-1)," ") -> 
D9: =IF('1 COMPOSIÇÃO DO NSGA'!D14=0," ",'1 COMPOSIÇÃO DO NSGA'!D14) -> Esposo (a) | E9: =IF('1 COMPOSIÇÃO DO NSGA'!D15=0," ",'1 COMPOSIÇÃO DO NSGA'!D15) -> Esposo (a) | F9: =IF('1 COMPOSIÇÃO DO NSGA'!D16=0," ",'1 COMPOSIÇÃO DO NSGA'!D16) -> Filho(a) | G9: =IF('1 COMPOSIÇÃO DO NSGA'!D17=0," ",'1 COMPOSIÇÃO DO NSGA'!D17) -> Filho(a) | H9: =IF('1 COMPOSIÇÃO DO NSGA'!D18=0," ",'1 COMPOSIÇÃO DO NSGA'!D18) -> Filho(a) | I9: =IF('1 COMPOSIÇÃO DO NSGA'!D19=0," ",'1 COMPOSIÇÃO DO NSGA'!D19) -> Filho(a) | J9: =IF('1 COMPOSIÇÃO DO NSGA'!D20=0," ",'1 COMPOSIÇÃO DO NSGA'!D20) -> Filho(a) | K9: =IF('1 COMPOSIÇÃO DO NSGA'!D21=0," ",'1 COMPOSIÇÃO DO NSGA'!D21) ->  | M9: =IF('1 COMPOSIÇÃO DO NSGA'!D14=0," ",'1 COMPOSIÇÃO DO NSGA'!D14) -> Esposo (a) | N9: =IF('1 COMPOSIÇÃO DO NSGA'!D15=0," ",'1 COMPOSIÇÃO DO NSGA'!D15) -> Esposo (a) | O9: =IF('1 COMPOSIÇÃO DO NSGA'!D16=0," ",'1 COMPOSIÇÃO DO NSGA'!D16) -> Filho(a) | P9: =IF('1 COMPOSIÇÃO DO NSGA'!D17=0," ",'1 COMPOSIÇÃO DO NSGA'!D17) -> Filho(a) | Q9: =IF('1 COMPOSIÇÃO DO NSGA'!D18=0," ",'1 COMPOSIÇÃO DO NSGA'!D18) -> Filho(a) | R9: =IF('1 COMPOSIÇÃO DO NSGA'!D19=0," ",'1 COMPOSIÇÃO DO NSGA'!D19) -> Filho(a) | S9: =IF('1 COMPOSIÇÃO DO NSGA'!D20=0," ",'1 COMPOSIÇÃO DO NSGA'!D20) -> Filho(a) | T9: =IF('1 COMPOSIÇÃO DO NSGA'!D21=0," ",'1 COMPOSIÇÃO DO NSGA'!D21) -> 
A10: Trabalho mercantil e autoconsumo | C10: =IF('4 SUBSISTEMAS'!A14=0," ",'4 SUBSISTEMAS'!A14) -> Roçado | D10: 2 | E10: 1 | F10: 0 | G10: 3 | M10: 1
C11: =IF('4 SUBSISTEMAS'!A15=0," ",'4 SUBSISTEMAS'!A15) -> Roçado Diversificado
C12: =IF('4 SUBSISTEMAS'!A16=0," ",'4 SUBSISTEMAS'!A16) -> Algodão
C13: =IF('4 SUBSISTEMAS'!A17=0," ",'4 SUBSISTEMAS'!A17) -> Bovinos
C14: =IF('4 SUBSISTEMAS'!A18=0," ",'4 SUBSISTEMAS'!A18) -> Ovinos Caprinos
C15: =IF('4 SUBSISTEMAS'!A19=0," ",'4 SUBSISTEMAS'!A19) -> Quintal Aves
C16: =IF('4 SUBSISTEMAS'!A20=0," ",'4 SUBSISTEMAS'!A20) -> Quintal porcos
C17: =IF('4 SUBSISTEMAS'!A21=0," ",'4 SUBSISTEMAS'!A21) -> Quintal frutas, horta e medicinais
C18: =IF('4 SUBSISTEMAS'!A22=0," ",'4 SUBSISTEMAS'!A22) -> Comercialização
C19: =IF('4 SUBSISTEMAS'!A23=0," ",'4 SUBSISTEMAS'!A23) -> 
C20: =IF('4 SUBSISTEMAS'!A24=0," ",'4 SUBSISTEMAS'!A24) -> 
A23: Trabalho doméstico e cuidados | C23: Cuidar das crianças
C24: Cuidar dos idosos
C25: Fazer comida
C26: Limpar a casa
C27: Lavar roupa
A29: Participação social
A31: Pluriatividade
D32: =SUM(D10:D31) -> 2 | E32: =SUM(E10:E31) -> 1 | F32: 0 | G32: 3 | H32: 0 | I32: 0 | J32: 0 | K32: 0 | M32: =SUM(M10:M31) -> 1 | N32: =SUM(N10:N31) -> 0 | O32: 0 | P32: 0 | Q32: 0 | R32: 0 | S32: 0 | T32: 0

Sheet 6 ANÁLISE QUALITATIVA
A1: Análise Qualitativa de Sustentabilidade
C8: NSGA | E8: =PRINCIPAL!E9 -> Família Silva | J8: MUNÍCIPIO | K8: =PRINCIPAL!H13 -> Solânea
C10: COMUNIDADE | E10: =PRINCIPAL!E16 -> Gameleira | J10: ESTADO | K10: =PRINCIPAL!D13 -> PB
J12: POSSUI JOVENS NO NSGA?
B14: ATRIBUTOS DE SUSTENTABILIDADE
B19: PERÍODO DE ANÁLISE | G19: QUALIFICAÇÃO
G20: MUITO BAIXA | H20: BAIXA | I20: MÉDIA | J20: ALTA | K20: MUITO ALTO
B21: 2000 | D21: 2022 | G21: 1 | H21: 2 | I21: 3 | J21: 4 | K21: 5

Sheet AUTONOMIA
D1: AUTONOMIA
A7: Parâmetro | E7: ANO REFERÊNCIA | F7: ANO ATUAL | G7: MUDANÇAS E INOVAÇÕES NO PERÍODO | I7: JUSTIFICATIVAS
E8: ='6 ANÁLISE QUALITATIVA'!B21 -> 2000 | F8: ='6 ANÁLISE QUALITATIVA'!D21 -> 2022
A9: BASE DE RECURSOS AUTOCONTROLADA | B9: Equipamentos/Infraestrutura | E9: 1 | F9: 3
B10: Capacidade de Trabalho | E10: 2 | F10: 5
B11: Forragem/Ração | E11: 2 | F11: 5
B12: Fertilidade do Solo | E12: 2 | F12: 5
B13: Disponibilidade de Água | E13: 2 | F13: 5
B14: Biodiversidade | E14: 2 | F14: 5
B15: Disponibilidade de Terra | E15: 2 | F15: 5
B16: Autoabastecimento alimentar | E16: 2 | F16: 5
A17: RECURSOS PRODUTIVOS MERCANTIS | B17: Terra de terceiros | E17: 2 | F17: 5
B18: Sementes, mudas, mat. propag., crias | E18: 2 | F18: 5
B19: Água | E19: 2 | F19: 5
B20: Fertilizantes | E20: 2 | F20: 5
B21: Forragem/Ração | E21: 2 | F21: 5
B22: Trabalho de terceiros | E22: 2 | F22: 5
D25: ÍNDICE DE AUTONOMIA (0-1)
A26: ='6 ANÁLISE QUALITATIVA'!B21 -> 2000 | G26: ='6 ANÁLISE QUALITATIVA'!D21 -> 2022
A27: =((SUM(E9:E16)+SUM(E17:E22))-14)*1/56 -> 0.2321428571 | G27: =((SUM(F9:F16)+SUM(F17:F22))-14)*1/56 -> 0.9642857143

Sheet RESPONSIVIDADE
C1: RESPONSIVIDADE
A7: Parâmetros | D7: ANO REFERÊNCIA | E7: ANO ATUAL | F7: MUDANÇAS E INOVAÇÕES NO PERÍODO | H7: JUSTIFICATIVAS
D8: ='6 ANÁLISE QUALITATIVA'!B21 -> 2000 | E8: ='6 ANÁLISE QUALITATIVA'!D21 -> 2022
A9: Biodiversidade (Planejada ou associada) | D9: 2 | E9: 5
A10: Diversidade de Mercados Acessados | D10: 1 | E10: 5
A11: Diversidade de Rendas (agrícolas e não-agrícolas) | D11: 1 | E11: 5
A12: Estoques de Insumos | D12: 1 | E12: 5
A13: Estoques Vivos | D13: 3 | E13: 5
A15: ÍNDICE DE RESPONSIVIDADE (0-1)
A16: ='6 ANÁLISE QUALITATIVA'!B21 -> 2000 | G16: ='6 ANÁLISE QUALITATIVA'!D21 -> 2022
A17: =(SUM(D9:D13)-5)*1/20 -> 0.15 | G17: =(SUM(E9:E13)-5)*1/20 -> 1

Sheet INTEGRAÇÃO SOCIAL
C1: INTEGRAÇÃO SOCIAL
A7: Parâmetros | D7: ANO REFERÊNCIA | E7: ANO ATUAL | F7: MUDANÇAS E INOVAÇÕES NO PERÍODO | H7: JUSTIFICATIVAS
D8: ='6 ANÁLISE QUALITATIVA'!B21 -> 2000 | E8: ='6 ANÁLISE QUALITATIVA'!D21 -> 2022
A9: Participação em espaços político-organizativos | D9: 3 | E9: 3
A10: Acesso a políticas públicas | D10: 4 | E10: 5
A11: Participação em redes sociotécnicas de aprendizagem | D11: 1 | E11: 4
A12: Apropriação de riqueza produzida no agroecossistema pelo NSGA | D12: 2 | E12: 3
A13: Participação em espaços de gestão de bens comuns | D13: 3 | E13: 3
A15: ÍNDICE DE INTEGRAÇÃO SOCIAL (0-1)
A16: ='6 ANÁLISE QUALITATIVA'!B21 -> 2000 | G16: ='6 ANÁLISE QUALITATIVA'!D21 -> 2022
A17: =(SUM(D9:D13)-5)*1/20 -> 0.4 | G17: =(SUM(E9:E13)-5)*1/20 -> 0.65

Sheet EQUIDADE DE GÊNERO
C1: EQUIDADE DE GÊNERO / PROTAGONISMO DAS MULHERES
A7: Parâmetro | D7: ANO REFERÊNCIA | E7: ANO ATUAL | F7: MUDANÇAS E INOVAÇÕES NO PERÍODO | H7: JUSTIFICATIVAS
D8: ='6 ANÁLISE QUALITATIVA'!B21 -> 2000 | E8: ='6 ANÁLISE QUALITATIVA'!D21 -> 2022
A9: Divisão sexual do trabalho doméstico e de cuidados (adultos) | D9: 2 | E9: 2
A10: Divisão sexual do trabalho doméstico e de cuidados (jovens) | D10: 2 | E10: 5
A11: Participação nas decisões de gestão do agroecossistema | D11: 2 | E11: 5
A12: Participação em espaços sócio-organizativos | D12: 2 | E12: 5
A13: Apropriação da riqueza gerada no agroecossistema | D13: 2 | E13: 5
A14: Acesso a políticas públicas | D14: 2 | E14: 5
A16: ÍNDICE DE EQUIDADE DE GÊNERO / PROTAGONISMO DAS MULHERES (0-1)
A17: ='6 ANÁLISE QUALITATIVA'!B21 -> 2000 | G17: ='6 ANÁLISE QUALITATIVA'!D21 -> 2022
A18: =(SUM(D9:D14)-6)*1/24 -> 0.25 | G18: =SUM(E9:E14)*1/30 -> 0.9

Sheet PROTAGONISMO DA JUVENTU
C1: PROTAGONISMO DA JUVENTUDE
A7: Parâmetro | D7: ANO REFERÊNCIA | E7: ANO ATUAL | F7: MUDANÇAS E INOVAÇÕES NO PERÍODO | H7: JUSTIFICATIVAS
D8: ='6 ANÁLISE QUALITATIVA'!B21 -> 2000 | E8: ='6 ANÁLISE QUALITATIVA'!D21 -> 2022
A9: Participação em espaços de aprendizagem | D9: 3 | E9: 2
A10: Participação nas decisões de gestão do agroecossistema | D10: 4 | E10: 2
A11: Participação em espaços político-organizativos | D11: 1 | E11: 2
A12: Acesso à políticas públicas | D12: 5 | E12: 2
A13: Autonomia econômica | D13: 3 | E13: 2
A15: ÍNDICE DE PROTAGONISMO DA JUVENTUDE (0-1)
A16: ='6 ANÁLISE QUALITATIVA'!B21 -> 2000 | G16: ='6 ANÁLISE QUALITATIVA'!D21 -> 2022
A17: =(SUM(D9:D13)-5)*1/20 -> 0.55 | G17: =(SUM(E9:E13)-5)*1/20 -> 0.25

Sheet SÍNTESE
B1: SÍNTESE
A7: Parâmetro | C7: ANO REFERÊNCIA | D7: ANO ATUAL
C8: ='6 ANÁLISE QUALITATIVA'!B21 -> 2000 | D8: ='6 ANÁLISE QUALITATIVA'!D21 -> 2022
A9: AUTONOMIA | C9: =AUTONOMIA!A27 -> 0.2321428571 | D9: =AUTONOMIA!G27 -> 0.9642857143
A10: RESPONSIVIDADE | C10: =RESPONSIVIDADE!A17 -> 0.15 | D10: =RESPONSIVIDADE!G17 -> 1
A11: INTEGRAÇÃO SOCIAL | C11: ='INTEGRAÇÃO SOCIAL'!A17 -> 0.4 | D11: ='INTEGRAÇÃO SOCIAL'!G17 -> 0.65
A12: EQUIDADE DE GÊNERO PROTAGONISMO DAS MULHERES | C12: ='EQUIDADE DE GÊNERO'!A18 -> 0.25 | D12: ='EQUIDADE DE GÊNERO'!G18 -> 0.9
A13: PROTAGONISMO DA JUVENTUDE | C13: ='PROTAGONISMO DA JUVENTU'!A17 -> 0.55 | D13: ='PROTAGONISMO DA JUVENTU'!G17:I17 -> 0.25 | E13: 0 | F13: 0
A14: ÍNDICE DE SÍNTESE (0-1)
A16: ='6 ANÁLISE QUALITATIVA'!B21 -> 2000 | C16: ='6 ANÁLISE QUALITATIVA'!D21 -> 2022
A17: =SUM(C9:C13)/5 -> 0.3164285714 | C17: =SUM(D9:D13)/5 -> 0.7528571429
